bitfinex-derivatives/quotes_SOLF0:USTF0_20241011
["timestamp","ask_amount","ask_price","bid_price","bid_amount"]
[1728674205880,1.4135,146.26,146.2,5.66]
[1728674206181,4.8324,146.26,146.23,3.4194]
[1728674206369,13.2324,146.26,146.23,3.4194]
[1728674207179,11.8189,146.26,146.23,3.4194]
[1728674207876,3.4189,146.26,146.23,3.4194]
[1728674208078,0.12502,146.27,146.24,8.4]
[1728674208287,0.12502,146.27,146.25,8.4]
[1728674208674,0.12502,146.27,146.26,3.4187]
[1728674213482,0.12502,146.27,146.14,33.24478482]
[1728674213787,0.12502,146.27,146.2,13.12]
[1728674214275,0.12502,146.27,146.22,13.12]
[1728674214476,0.12502,146.27,146.23,5.62]
[1728674214684,0.12502,146.27,146.25,3.4188]
[1728674215272,0.12502,146.27,146.23,5.62]
[1728674216073,0.12502,146.27,146.25,3.4187]
[1728674216378,0.12502,146.27,146.25,13.12]
[1728674216585,0.12502,146.27,146.26,3.4187]
[1728674218477,3.4174,146.32,146.27,3.4184]
[1728674218672,3.4174,146.32,146.27,9.0384]
[1728674218877,3.4176,146.31,146.27,9.0384]
[1728674220475,13.24502,146.33,146.27,5.62]
[1728674220687,3.418,146.29,146.27,5.62]
[1728674221081,13.24502,146.33,146.27,5.62]
[1728674221283,3.4178,146.3,146.27,5.62]
[1728674222582,3.4177,146.31,146.27,9.0383]
[1728674222882,13.24502,146.33,146.26,5.62]
[1728674223589,3.4181,146.29,146.26,5.62]
[1728674223788,3.40317027,146.32,146.26,5.62]
[1728674223990,13.12,146.31,146.26,5.62]
[1728674224289,3.4184,146.28,146.26,5.62]
[1728674224690,3.4184,146.28,146.24,3.4191]
[1728674224895,13.12,146.27,146.21,0.12502]
[1728674225188,13.12,146.27,146.22,5.62]
[1728674225785,14.4512,146.29,146.22,5.62]
[1728674226290,1.3312,146.29,146.22,18.74]
[1728674226913,4.7493,146.29,146.25,3.4188]
[1728674228392,1.3312,146.29,146.22,18.74]
[1728674228595,3.4179,146.3,146.26,3.4185]
[1728674229495,3.4179,146.3,146.26,9.0385]
[1728674231600,3.4175,146.31,146.28,3.4182]
[1728674233291,0.12502,146.33,146.27,13.12]
[1728674233493,0.12502,146.33,146.29,13.12]
[1728674233792,0.12502,146.33,146.3,5.62]
[1728674234502,3.54212,146.33,146.3,9.0375]
[1728674234891,3.54212,146.33,146.3,9.0377]
[1728674235195,0.12502,146.33,146.3,5.62]
[1728674235990,0.12502,146.33,146.32,3.4173]
[1728674236499,0.12502,146.33,146.3,5.62]
[1728674236500,0.12502,146.33,146.31,3.4174]
[1728674236693,0.12502,146.33,146.3,5.62]
[1728674237194,0.12502,146.33,146.32,3.4173]
[1728674238300,0.12502,146.33,146.3,9.0377]
[1728674238498,0.12502,146.33,146.3,5.62]
[1728674238698,0.12502,146.33,146.31,5.62]
[1728674239005,3.4174,146.32,146.3,5.62]
[1728674239296,3.4174,146.32,146.29,5.62]
[1728674239697,3.54212,146.33,146.29,9.0379]
[1728674240601,3.54212,146.33,146.29,3.4179]
[1728674240800,3.54212,146.33,146.29,9.0379]
[1728674241101,0.12502,146.33,146.29,9.0379]
[1728674241302,3.4173,146.32,146.29,9.0379]
[1728674241499,3.4173,146.32,146.29,5.62]
[1728674241895,3.4175,146.31,146.29,5.62]
[1728674243002,3.4178,146.3,146.29,5.62]
[1728674243401,0.12502,146.33,146.29,5.62]
[1728674243696,3.4174,146.32,146.29,5.62]
[1728674243890,0.12502,146.33,146.29,5.62]
[1728674244095,0.12502,146.33,146.3,13.12]
[1728674244301,0.12502,146.33,146.3,16.5377]
[1728674244599,0.12502,146.33,146.3,3.4177]
[1728674245101,3.54212,146.33,146.3,3.4177]
[1728674246195,3.54212,146.33,146.29,9.0378]
[1728674246794,0.12502,146.33,146.3,3.4177]
[1728674247106,0.12502,146.33,146.28,13.12]
[1728674247301,0.12502,146.33,146.29,5.84]
[1728674247492,0.12502,146.33,146.29,18.96]
[1728674248399,0.00602,146.33,146.32,3.4173]
[1728674248600,3.416,146.38,146.31,13.12]
[1728674248800,0.12502,146.39,146.31,13.12]
[1728674249006,13.12,146.37,146.31,3.4174]
[1728674249306,13.12,146.37,146.29,5.84]
[1728674249999,3.417,146.34,146.3,3.4176]
[1728674250395,3.4171,146.33,146.3,3.4176]
[1728674250602,14.4697,146.37,146.31,3.4174]
[1728674250799,14.4697,146.37,146.29,5.84]
[1728674251002,3.417,146.34,146.29,5.84]
[1728674251200,3.417,146.34,146.31,3.4175]
[1728674251399,14.4697,146.37,146.31,3.4175]
[1728674251595,3.4167,146.35,146.29,5.84]
[1728674251806,14.4697,146.37,146.31,3.4174]
[1728674252006,3.4168,146.35,146.31,3.4174]
[1728674252200,14.4697,146.37,146.31,3.4174]
[1728674252396,14.4697,146.37,146.3,3.4177]
[1728674252596,3.417,146.34,146.3,3.4177]
[1728674254101,3.4171,146.33,146.3,5.84]
[1728674254807,13.12,146.35,146.27,0.12502]
[1728674255007,1.3497,146.37,146.27,5.96502]
[1728674255208,13.12,146.32,146.27,5.96502]
[1728674255402,1.3497,146.37,146.27,5.96502]
[1728674255403,3.4178,146.3,146.27,9.38332]
[1728674255604,1.3497,146.37,146.27,5.96502]
[1728674255605,13.12,146.36,146.27,5.96502]
[1728674256002,3.4172,146.33,146.29,3.4179]
[1728674256206,13.12,146.35,146.27,5.96502]
[1728674256822,3.4179,146.3,146.27,9.38332]
[1728674257311,13.12,146.35,146.27,5.96502]
[1728674257716,3.4174,146.32,146.28,3.4182]
[1728674258012,13.12,146.35,146.28,3.4182]
[1728674258411,13.12,146.35,146.29,3.418]
[1728674258817,3.4173,146.32,146.29,3.418]
[1728674260114,3.4175,146.32,146.28,3.4182]
[1728674260611,11.8175,146.32,146.28,3.4182]
[1728674261823,3.4176,146.31,146.28,3.4182]
[1728674262124,3.4176,146.31,146.27,17.78342]
[1728674264420,3.4176,146.31,146.27,14.36502]
[1728674264625,3.4176,146.31,146.28,3.4182]
[1728674270632,11.8174,146.32,146.28,3.4182]
[1728674271534,11.8174,146.32,146.29,3.418]
[1728674272533,11.8174,146.32,146.27,8.52502]
[1728674272831,11.8174,146.32,146.28,3.4181]
[1728674274626,7.1897,146.37,146.27,8.52502]
[1728674274826,8.4,146.33,146.3,3.4177]
[1728674275722,8.4,146.33,146.29,3.4179]
[1728674276032,8.4,146.32,146.29,3.4179]
[1728674277430,11.8174,146.32,146.29,3.4179]
[1728674278032,3.4172,146.33,146.29,3.4179]
[1728674278231,3.4172,146.33,146.3,3.4177]
[1728674278232,8.4,146.32,146.3,3.4177]
[1728674279947,8.4,146.32,146.29,3.4179]
[1728674280139,11.8173,146.32,146.29,3.4179]
[1728674280852,8.4,146.32,146.28,8.4]
[1728674281049,8.4,146.31,146.27,0.12502]
[1728674281749,3.4178,146.3,146.27,3.54332]
[1728674282340,3.4176,146.31,146.28,3.4182]
[1728674283342,3.4171,146.33,146.27,8.52502]
[1728674283643,8.4,146.32,146.27,8.52502]
[1728674283956,8.4,146.32,146.3,3.4177]
[1728674284538,8.4,146.32,146.27,0.12502]
[1728674284840,11.8175,146.32,146.28,3.4182]
[1728674285043,11.8175,146.32,146.27,8.52502]
[1728674285240,11.8175,146.32,146.29,3.418]
[1728674285442,3.4176,146.31,146.27,8.52502]
[1728674285852,8.4,146.28,146.27,0.12502]
[1728674286053,11.8182,146.28,146.27,0.12502]
[1728674286852,8.4,146.28,146.27,0.12502]
[1728674287848,4.8405,146.3,146.27,3.54342]
[1728674288056,1.4226,146.3,146.27,0.12502]
[1728674288259,8.4,146.28,146.27,0.12502]
[1728674289951,8.4,146.28,146.23,5.7]
[1728674290252,8.4,146.27,146.22,17.5195]
[1728674290951,3.419,146.25,146.22,17.5195]
[1728674291153,3.419,146.25,146.22,14.1]
[1728674291458,8.4,146.27,146.22,14.1]
[1728674291649,3.4188,146.26,146.22,17.5195]
[1728674292357,8.4,146.23,146.18,8.4]
[1728674292561,8.4,146.25,146.2,8.4]
[1728674293460,3.4193,146.24,146.2,11.8199]
[1728674294765,3.4193,146.24,146.21,3.54482]
[1728674295061,3.4186,146.27,146.22,8.4]
[1728674295363,8.4,146.28,146.24,11.819]
[1728674295556,3.4184,146.28,146.24,8.4]
[1728674295756,3.4184,146.28,146.24,11.8191]
[1728674296462,3.4185,146.27,146.24,11.8191]
[1728674296660,8.4,146.29,146.24,11.8191]
[1728674296964,8.4,146.28,146.22,3.4195]
[1728674297262,3.4188,146.26,146.22,8.4]
[1728674297761,8.4,146.28,146.22,8.4]
[1728674298058,3.4186,146.27,146.23,8.4]
[1728674298556,3.4186,146.27,146.15,0.12502]
[1728674298557,8.4,146.24,146.15,0.12502]
[1728674298760,8.4,146.19,146.15,0.12502]
[1728674299659,3.4206,146.18,146.15,0.12502]
[1728674301064,3.4208,146.17,146.15,0.12502]
[1728674302166,3.421,146.16,146.15,0.12502]
[1728674306065,11.821,146.16,146.15,0.12502]
[1728674307070,3.4209,146.17,146.15,0.12502]
[1728674307265,1.3143,146.21,146.15,0.12502]
[1728674307471,8.4,146.17,146.15,0.12502]
[1728674307663,11.8209,146.17,146.15,0.12502]
[1728674308571,8.4,146.16,146.15,0.12502]
[1728674309470,11.821,146.16,146.15,0.12502]
[1728674309671,8.4,146.16,146.15,0.12502]
[1728674312965,11.821,146.16,146.15,0.12502]
[1728674316176,1.3143,146.21,146.15,0.12502]
[1728674316368,8.4,146.16,146.15,0.12502]
[1728674317477,11.821,146.16,146.15,0.12502]
[1728674331888,8.4,146.16,146.09,0.12502]
[1728674332092,8.4,146.1,146.09,0.12502]
[1728674335698,8.4,146.14,146.1,3.4223]
[1728674335901,1.3156,146.15,146.11,8.4]
[1728674336205,8.4,146.16,146.12,3.4217]
[1728674336903,8.4,146.16,146.13,3.4215]
[1728674339402,2.7004,146.2,146.13,8.4]
[1728674339403,8.4,146.18,146.13,8.4]
[1728674339608,8.4,146.17,146.13,8.4]
[1728674340311,11.8209,146.17,146.13,11.8216]
[1728674340505,8.4,146.17,146.13,11.8216]
[1728674341408,3.4211,146.16,146.13,11.8216]
[1728674342115,2.7004,146.2,146.13,11.8216]
[1728674342404,8.4,146.19,146.14,8.4]
[1728674342604,0.12502,146.21,146.16,8.4]
[1728674342808,3.54502,146.21,146.17,3.4206]
[1728674343208,0.12502,146.21,146.16,8.4]
[1728674343403,0.12502,146.21,146.19,8.4]
[1728674343606,0.12502,146.21,146.2,8.4]
[1728674343805,0.12502,146.21,146.2,11.8201]
[1728674344215,0.12502,146.27,146.2,8.4]
[1728674344406,0.12502,146.27,146.23,8.4]
[1728674344603,0.12502,146.27,146.23,14.04]
[1728674345413,0.12502,146.27,146.24,3.419]
[1728674345601,0.12502,146.27,146.24,11.819]
[1728674347610,8.52502,146.27,146.23,5.64]
[1728674347814,8.4,146.25,146.23,5.64]
[1728674348111,0.12502,146.27,146.23,5.64]
[1728674348112,8.4,146.24,146.23,5.64]
[1728674348313,11.8192,146.24,146.23,5.64]
[1728674348512,11.8192,146.24,146.2,5.64]
[1728674348715,8.4,146.24,146.2,5.64]
[1728674349021,11.8197,146.22,146.2,5.64]
[1728674350520,3.4194,146.23,146.2,5.64]
[1728674350824,1.2986,146.25,146.2,14.04]
[1728674351021,9.6986,146.25,146.2,14.04]
[1728674351214,9.6986,146.25,146.2,5.64]
[1728674351416,3.4194,146.23,146.2,5.64]
[1728674351621,9.6986,146.25,146.2,14.04]
[1728674351923,1.2986,146.25,146.2,14.04]
[1728674352119,9.6986,146.25,146.2,14.04]
[1728674352625,3.4193,146.24,146.2,9.0599]
[1728674353020,9.6986,146.25,146.2,5.64]
[1728674353217,13.1177,146.25,146.21,3.4198]
[1728674353625,9.6986,146.25,146.21,3.4198]
[1728674353828,9.6986,146.25,146.2,5.64]
[1728674355019,9.6986,146.25,146.2,14.04]
[1728674355426,3.4192,146.24,146.2,14.04]
[1728674356317,3.4192,146.24,146.2,17.46]
[1728674356718,9.6986,146.25,146.2,5.64]
[1728674356926,8.4,146.22,146.2,5.64]
[1728674357224,8.4,146.22,146.18,8.4]
[1728674357614,8.4,146.22,146.17,5.64]
[1728674357824,1.2986,146.25,146.16,11.8209]
[1728674357825,8.4,146.21,146.16,11.8209]
[1728674358125,8.4,146.21,146.17,5.64]
[1728674358520,3.4203,146.2,146.17,5.64]
[1728674358714,8.4,146.21,146.17,9.0608]
[1728674358918,11.82,146.21,146.17,9.0608]
[1728674359115,8.4,146.24,146.18,11.8204]
[1728674359719,8.4,146.24,146.18,8.4]
[1728674359720,11.8192,146.24,146.18,8.4]
[1728674359920,11.8192,146.24,146.17,5.64]
[1728674359921,3.4192,146.24,146.2,11.8199]
[1728674360121,8.4,146.24,146.18,8.4]
[1728674360428,3.4198,146.22,146.18,11.8204]
[1728674361025,3.4199,146.21,146.17,17.4607]
[1728674361227,8.4,146.22,146.17,17.4607]
[1728674362429,3.4201,146.2,146.17,17.4607]
[1728674363125,3.4198,146.22,146.19,3.4202]
[1728674363526,3.4194,146.23,146.2,3.42]
[1728674363723,9.6986,146.25,146.2,3.42]
[1728674364831,3.4194,146.23,146.2,3.42]
[1728674365028,9.6986,146.25,146.2,3.42]
[1728674365329,1.2986,146.25,146.21,8.4]
[1728674365730,1.2986,146.25,146.22,3.4196]
[1728674366323,1.2986,146.25,146.21,17.4797]
[1728674367333,3.4192,146.24,146.21,17.4797]
[1728674368227,1.2986,146.25,146.22,8.4]
[1728674368530,3.4187,146.26,146.23,3.4193]
[1728674368922,11.94352,146.27,146.23,8.4]
[1728674370023,8.52502,146.27,146.23,11.8193]
[1728674370228,8.4,146.26,146.22,8.4]
[1728674370424,8.4,146.24,146.21,3.4197]
[1728674370629,3.4197,146.22,146.2,5.66]
[1728674371132,8.4,146.23,146.2,5.66]
[1728674371427,3.4199,146.21,146.2,5.66]
[1728674372032,8.4,146.23,146.2,5.66]
[1728674372234,3.4197,146.22,146.2,5.66]
[1728674373730,4.7477,146.25,146.22,3.4195]
[1728674374132,4.7477,146.25,146.2,18.8]
[1728674374133,1.3287,146.25,146.2,18.8]
[1728674374733,3.4192,146.24,146.21,3.4197]
[1728674376736,1.3287,146.25,146.21,3.4197]
[1728674376945,4.7477,146.25,146.21,3.4197]
[1728674377135,1.3287,146.25,146.2,9.08]
[1728674377335,3.4193,146.24,146.2,9.08]
[1728674377537,1.3287,146.25,146.2,5.66]
[1728674378238,0.12502,146.27,146.2,5.66]
[1728674378443,0.12502,146.27,146.21,13.14]
[1728674378939,0.12502,146.27,146.24,3.419]
[1728674379845,3.54362,146.27,146.24,3.419]
[1728674380337,3.54362,146.27,146.21,13.14]
[1728674380338,0.12502,146.27,146.21,13.14]
[1728674380643,0.12502,146.27,146.23,13.14]
[1728674380844,0.12502,146.27,146.24,5.66]
[1728674381242,0.12502,146.27,146.26,3.4187]
[1728674384046,1.3115,146.32,146.28,13.14]
[1728674384247,1.3115,146.32,146.28,18.8]
[1728674384453,1.3115,146.32,146.28,22.2181]
[1728674384454,4.729,146.32,146.28,22.2181]
[1728674384739,0.12502,146.33,146.28,18.8]
[1728674385043,3.4174,146.32,146.29,3.4178]
[1728674385343,0.12502,146.33,146.28,18.8]
[1728674385648,3.54232,146.33,146.29,3.4178]
[1728674386943,0.12502,146.33,146.31,3.4174]
[1728674387144,0.12502,146.33,146.28,18.8]
[1728674388344,3.4173,146.32,146.29,3.4178]
[1728674388549,0.12502,146.33,146.28,5.66]
[1728674388944,3.4174,146.32,146.28,9.078]
[1728674389550,0.12502,146.33,146.28,3.418]
[1728674389744,3.4178,146.31,146.27,9.4384]
[1728674390542,13.26502,146.33,146.27,9.4384]
[1728674390741,3.4177,146.31,146.27,9.4384]
[1728674391647,3.4175,146.32,146.27,6.02]
[1728674391857,13.26502,146.33,146.27,6.02]
[1728674392048,1.3317,146.31,146.26,6.02]
[1728674393456,14.4717,146.31,146.22,13.14]
[1728674393758,14.4717,146.31,146.24,3.4191]
[1728674393953,3.4186,146.27,146.23,6.02]
[1728674394343,13.14,146.3,146.23,3.4192]
[1728674394550,3.4189,146.26,146.22,6.02]
[1728674394848,13.14,146.3,146.22,9.4395]
[1728674395055,3.4189,146.26,146.22,9.4395]
[1728674396354,13.14,146.3,146.22,6.02]
[1728674396555,3.4183,146.28,146.22,19.16]
[1728674396860,21.8911,146.31,146.22,19.16]
[1728674397159,3.4181,146.29,146.25,3.4188]
[1728674397660,21.8911,146.31,146.25,3.4188]
[1728674397859,3.4183,146.28,146.25,3.4188]
[1728674400055,3.4181,146.29,146.25,3.4188]
[1728674400957,1.3317,146.31,146.24,13.14]
[1728674401153,1.3317,146.31,146.27,3.4183]
[1728674401946,1.3317,146.31,146.26,6.02]
[1728674402148,14.4717,146.31,146.26,6.02]
[1728674402652,3.4184,146.28,146.26,6.02]
[1728674405454,13.14,146.3,146.21,1.56412]
[1728674405656,14.5036,146.3,146.22,6.02]
[1728674406553,14.5036,146.3,146.23,3.4192]
[1728674407154,3.4187,146.26,146.23,3.4192]
[1728674408652,1.3317,146.31,146.22,19.16]
[1728674408858,4.7493,146.31,146.26,13.14]
[1728674409060,4.7493,146.31,146.26,19.16]
[1728674409971,4.7493,146.31,146.27,3.4183]
[1728674411061,4.7493,146.31,146.26,19.16]
[1728674411354,4.7493,146.31,146.28,3.4182]
[1728674415664,1.3317,146.31,146.26,19.16]
[1728674415868,3.4179,146.3,146.27,3.4182]
[1728674416164,3.4179,146.3,146.26,19.16]
[1728674416368,1.3317,146.31,146.3,3.4178]
[1728674416563,0.12502,146.33,146.26,19.16]
[1728674416962,3.4173,146.32,146.29,3.4178]
[1728674420366,0.12502,146.33,146.24,13.14]
[1728674420672,0.12502,146.33,146.27,3.4184]
[1728674421174,0.12502,146.33,146.26,13.14]
[1728674421369,0.12502,146.33,146.29,3.4179]
[1728674421666,0.12502,146.33,146.25,5.76]
[1728674421880,0.12502,146.33,146.26,3.4187]
[1728674422181,13.26502,146.33,146.25,5.76]
[1728674422376,3.4181,146.29,146.25,5.76]
[1728674422575,13.26502,146.33,146.24,13.14]
[1728674422777,13.26502,146.33,146.25,5.76]
[1728674423284,3.4184,146.28,146.25,5.76]
[1728674423484,0.12502,146.33,146.25,5.76]
[1728674424105,13.14,146.32,146.25,5.76]
[1728674424385,13.14,146.3,146.24,5.76]
[1728674424580,1.3454,146.29,146.24,5.76]
[1728674424980,3.4187,146.26,146.24,5.76]
[1728674425882,3.4187,146.26,146.23,3.4193]
[1728674426086,3.4193,146.24,146.21,5.88502]
[1728674426382,13.14,146.26,146.21,5.88502]
[1728674426786,13.14,146.26,146.21,0.12502]
[1728674427977,3.4196,146.23,146.21,0.12502]
[1728674428476,3.4193,146.24,146.21,3.54492]
[1728674429895,3.4188,146.26,146.22,3.4195]
[1728674432185,3.4186,146.27,146.24,3.419]
[1728674433488,4.7634,146.29,146.26,3.4187]
[1728674433687,4.7634,146.29,146.24,5.76]
[1728674433688,336.3239,146.32,146.25,13.14]
[1728674433984,1.3239,146.32,146.25,13.14]
[1728674434188,3.4178,146.3,146.27,3.4183]
[1728674435196,1.3239,146.32,146.25,13.14]
[1728674436293,3.4178,146.3,146.26,3.4186]
[1728674436489,1.3239,146.32,146.26,3.4186]
[1728674436691,3.4177,146.31,146.26,3.4186]
[1728674436890,1.3239,146.32,146.26,3.4186]
[1728674437290,3.418,146.29,146.26,3.4186]
[1728674437592,0.12502,146.33,146.27,13.14]
[1728674437789,0.12502,146.33,146.29,3.4178]
[1728674437994,3.4174,146.32,146.29,3.4178]
[1728674439800,3.54222,146.33,146.3,3.4176]
[1728674440101,0.12502,146.33,146.28,18.9]
[1728674440301,0.12502,146.33,146.28,5.76]
[1728674440496,3.4175,146.32,146.29,3.4178]
[1728674440802,0.12502,146.33,146.28,5.76]
[1728674441197,3.4177,146.31,146.28,9.1781]
[1728674442794,3.418,146.29,146.28,5.76]
[1728674442998,3.418,146.29,146.26,9.1787]
[1728674445103,3.4178,146.3,146.26,9.1787]
[1728674445802,3.4178,146.3,146.27,3.4185]
[1728674451310,3.4177,146.31,146.28,3.4182]
[1728674452714,3.37001845,146.32,146.28,3.4182]
[1728674452914,3.4178,146.3,146.28,3.4182]
[1728674453213,3.4178,146.3,146.27,3.4183]
[1728674455922,3.4181,146.29,146.26,9.1786]
[1728674456615,3.4179,146.3,146.27,3.4184]
[1728674458311,1.55392,146.33,146.26,5.76]
[1728674458616,1.55392,146.33,146.29,3.4179]
[1728674459016,6.78229165,146.32,146.29,3.4179]
[1728674460013,3.4174,146.32,146.29,3.4179]
[1728674460314,0.12502,146.33,146.32,3.4173]
[1728674460514,0.12502,146.33,146.31,8.41]
[1728674460816,0.12502,146.33,146.3,5.76]
[1728674460817,3.54212,146.33,146.3,14.17]
[1728674461409,3.54212,146.33,146.3,17.5876]
[1728674461609,3.54212,146.33,146.3,14.17]
[1728674461814,3.4173,146.32,146.3,17.5877]
[1728674462420,3.4173,146.32,146.3,9.1777]
[1728674463019,0.12502,146.33,146.3,9.1777]
[1728674463316,3.54222,146.33,146.3,9.1777]
[1728674465218,3.4173,146.32,146.3,9.1777]
[1728674467019,3.54222,146.33,146.3,9.1777]
[1728674471229,3.54212,146.33,146.31,3.4174]
[1728674472022,3.4173,146.32,146.3,5.76]
[1728674475832,3.4173,146.32,146.29,3.4178]
[1728674476035,3.4181,146.29,146.26,9.1786]
[1728674476339,1.4337,146.31,146.26,5.76]
[1728674476743,1.4337,146.31,146.27,13.13]
[1728674477240,4.8514,146.31,146.28,3.4182]
[1728674477739,3.4178,146.3,146.27,16.5484]
[1728674479534,3.4178,146.3,146.27,3.4184]
[1728674479742,3.4183,146.28,146.26,5.76]
[1728674479941,1.4337,146.31,146.24,13.13]
[1728674480138,2.8301,146.31,146.24,13.13]
[1728674480338,3.4186,146.27,146.24,16.549]
[1728674480538,15.9601,146.31,146.22,14.4558]
[1728674480740,13.13,146.29,146.21,0.12502]
[1728674480942,3.4196,146.22,146.21,0.12502]
[1728674482042,18.77,146.23,146.15,0.12502]
[1728674482649,3.4205,146.19,146.15,3.54622]
[1728674482842,8.41,146.2,146.16,8.41]
[1728674483035,5.64,146.23,146.16,8.41]
[1728674483237,8.41,146.21,146.16,8.41]
[1728674483634,3.4201,146.2,146.17,8.41]
[1728674485643,3.4204,146.19,146.17,8.41]
[1728674485950,3.4204,146.19,146.16,11.831]
[1728674486946,3.4204,146.19,146.15,0.12502]
[1728674486947,8.41,146.19,146.15,0.12502]
[1728674487147,8.41,146.21,146.16,8.41]
[1728674487354,3.4205,146.19,146.16,11.831]
[1728674488347,3.4207,146.18,146.15,11.95622]
[1728674489149,3.4207,146.18,146.16,8.41]
[1728674490150,3.4207,146.18,146.15,11.95622]
[1728674490347,8.41,146.2,146.15,11.95622]
[1728674490544,3.4204,146.19,146.16,3.421]
[1728674491348,3.4204,146.19,146.15,8.53502]
[1728674491644,3.4204,146.19,146.15,11.95622]
[1728674491846,3.4204,146.19,146.15,8.53502]
[1728674492038,3.4204,146.19,146.16,3.4209]
[1728674492847,8.41,146.2,146.16,3.4209]
[1728674493351,3.4206,146.19,146.15,11.95612]
[1728674493648,3.4206,146.19,146.15,8.53502]
[1728674494348,8.41,146.2,146.15,8.53502]
[1728674494543,3.4206,146.18,146.15,11.95622]
[1728674496244,8.41,146.18,146.15,0.12502]
[1728674496450,3.421,146.16,146.15,0.12502]
[1728674499346,11.831,146.16,146.15,0.12502]
[1728674500752,15.20195829,146.16,146.15,0.12502]
[1728674500953,11.78095829,146.16,146.1,11.8324]
[1728674501256,3.422,146.12,146.09,0.12502]
[1728674501749,8.41,146.13,146.09,0.12502]
[1728674501951,8.41,146.1,146.09,0.12502]
[1728674502546,11.8324,146.1,146.09,0.12502]
[1728674504151,3.4233,146.07,146.03,3.54902]
[1728674504358,1.4296,146.12,146.06,8.41]
[1728674504560,14.05,146.11,146.06,8.41]
[1728674505058,11.8324,146.11,146.08,3.4228]
[1728674505259,8.41,146.11,146.06,8.41]
[1728674505559,3.4226,146.1,146.06,11.8333]
[1728674505758,8.41,146.11,146.06,11.8333]
[1728674506558,8.41,146.1,146.06,8.41]
[1728674506758,8.41,146.09,146.05,3.4236]
[1728674507553,3.423,146.08,146.04,11.8338]
[1728674508266,8.41,146.1,146.06,8.41]
[1728674508561,3.4228,146.09,146.06,8.41]
[1728674511062,3.4228,146.09,146.06,11.8333]
[1728674511964,3.4223,146.11,146.08,3.4228]
[1728674512568,3.4225,146.1,146.07,11.8331]
[1728674513368,1.4296,146.12,146.08,3.4227]
[1728674513962,4.8517,146.12,146.08,3.4227]
[1728674514363,1.4296,146.12,146.08,3.4227]
[1728674514559,9.8396,146.12,146.08,3.4227]
[1728674514960,3.4224,146.11,146.08,3.4227]
[1728674515164,3.4224,146.11,146.06,8.41]
[1728674515365,9.8396,146.12,146.07,3.4231]
[1728674515565,3.4225,146.1,146.07,3.4231]
[1728674515769,9.8396,146.12,146.07,3.4231]
[1728674516265,3.4224,146.1,146.07,3.4231]
[1728674520366,11.8324,146.1,146.06,8.41]
[1728674520566,11.8324,146.1,146.06,11.8333]
[1728674520764,11.8324,146.1,146.06,8.41]
[1728674520966,8.41,146.1,146.07,3.4229]
[1728674521572,11.8325,146.1,146.07,3.4229]
[1728674521773,8.41,146.1,146.06,11.8332]